bitfinex/quotes_ETHUSD_20241203
["timestamp","ask_amount","ask_price","bid_price","bid_amount"]
[1733219376281,0.68025375,3607.9,3607.5,1.92407162]
[1733219377351,0.68025375,3607.9,3607.5,1.74915602]
[1733219378354,0.13025375,3607.9,3607.5,1.74915602]
[1733219380841,0.13025375,3608.3,3607.5,1.74915602]
[1733219381039,0.23025375,3608.3,3607.7,1.2343]
[1733219382069,0.13025375,3608.1,3607.5,0.55485602]
[1733219382445,0.13025375,3607.9,3607.5,0.55485602]
[1733219383145,1.3058,3608.1,3607.5,0.55485602]
[1733219383146,0.13025375,3607.7,3607.5,0.55485602]
[1733219384944,0.23025375,3607.5,3607.4,1.5]
[1733219385144,1.49815375,3607.5,3607.4,1.5]
[1733219385344,1.39815375,3607.5,3607.4,1.5]
[1733219385575,0.13025375,3607.5,3607.4,1.5]
[1733219385961,0.13025375,3607.5,3607.4,2.6675]
[1733219386261,2.03895375,3607.5,3607.4,1.5]
[1733219386950,5.04793418,3607.5,3607.4,1.5]
[1733219388490,5.30518377,3607.5,3607.4,1.5]
[1733219390283,4.49793418,3607.5,3607.4,1.5]
[1733219390888,4.39793418,3607.5,3607.4,1.5]
[1733219391195,4.49793418,3607.5,3607.4,1.5]
[1733219392577,3.23923418,3607.5,3607.4,1.5]
[1733219393096,0.23025375,3607.5,3607.4,1.5]
[1733219394951,0.13025375,3607.5,3607.4,1.5]
[1733219395151,0.13025375,3607.6,3607.4,1.5]
[1733219397008,0.1,3607.5,3607.4,1.5]
[1733219399508,1.3794,3607.5,3607.4,1.5]
[1733219400599,0.1,3607.5,3607.4,2.7278]
[1733219400843,0.13025375,3607.6,3607.4,1.5]
[1733219401379,0.1,3607.5,3607.4,1.5]
[1733219402591,0.13025375,3607.6,3607.4,1.5]
[1733219403505,0.1,3607.5,3607.4,1.5]
[1733219404291,1.3355,3607.5,3607.4,1.5]
[1733219408581,0.1,3607.5,3607.4,1.5]
[1733219408985,0.13025375,3607.6,3607.4,1.5]
[1733219411207,0.13025375,3607.8,3607.4,1.5]
[1733219411424,0.13025375,3607.8,3607.5,1.1855]
[1733219411597,0.23025375,3607.8,3607.5,1.1855]
[1733219411784,0.23025375,3607.8,3607.5,1.45405]
[1733219412545,0.2581592,3608.1,3607.5,1.45405]
[1733219412546,0.13025375,3608.1,3607.5,1.45405]
[1733219412894,0.1,3607.8,3607.5,1.45405]
[1733219413234,0.13025375,3607.8,3607.5,1.45405]
[1733219413405,0.23025375,3607.8,3607.5,1.45405]
[1733219413619,0.13025375,3607.8,3607.6,0.34982888]
[1733219413815,0.13025375,3608.3,3607.6,0.34982888]
[1733219414130,0.13025375,3608.3,3607.7,1.2283]
[1733219414298,0.15792573,3608.3,3607.7,1.2283]
[1733219414644,0.13025375,3608.1,3607.7,1.2283]
[1733219414942,0.13025375,3608.1,3607.8,0.15781289]
[1733219416411,3.42159441,3608.7,3607.8,0.15781289]
[1733219416412,0.25853578,3608.3,3607.9,1.8587]
[1733219416616,1.73516341,3609.2,3607.6,0.34982888]
[1733219416617,0.1,3608.8,3608.1,1.3087]
[1733219416844,0.1,3608.8,3608.3,1.3087]
[1733219417160,0.13025375,3609.0,3608.5,1.1988]
[1733219417350,0.13025375,3609.0,3608.6,0.17488]
[1733219417641,0.13025375,3609.0,3608.5,1.1988]
[1733219418000,0.1,3608.9,3608.5,1.1988]
[1733219418601,0.23025375,3608.9,3608.5,1.1988]
[1733219418840,0.13025375,3608.7,3608.5,1.1988]
[1733219420118,0.1,3608.9,3608.5,1.1988]
[1733219421347,0.13025375,3609.3,3608.5,1.40347248]
[1733219421532,0.35853578,3609.5,3608.8,0.55]
[1733219421533,0.25853578,3609.5,3608.8,0.55]
[1733219421742,0.13025375,3609.6,3608.9,1.1879]
[1733219422055,0.1,3609.7,3609.0,0.02770471]
[1733219422209,0.1,3609.7,3609.1,1.1879]
[1733219422555,0.1,3609.5,3609.1,1.36446047]
[1733219422701,0.23025375,3609.6,3609.1,1.36446047]
[1733219422903,0.1,3609.8,3609.3,1.1879]
[1733219423547,0.13025375,3609.9,3609.3,1.1879]
[1733219423753,0.13025375,3609.9,3609.3,1.37934605]
[1733219424479,0.13025375,3609.9,3609.3,1.9214367]
[1733219426252,0.1,3610.2,3609.4,0.02770259]
[1733219426563,0.13025375,3610.5,3609.5,1.1879]
[1733219426739,0.13025375,3610.5,3609.6,1.24279853]
[1733219426947,0.1,3610.7,3609.6,1.24279853]
[1733219427167,0.13025375,3610.9,3609.8,1.2151]
[1733219427368,0.13025375,3611.0,3609.9,1.48007985]
[1733219427646,0.13025375,3611.0,3610.3,1.3008]
[1733219427968,1.2652,3611.5,3610.3,1.3008]
[1733219427969,0.13025375,3610.8,3610.3,1.3008]
[1733219428176,0.1,3610.6,3610.2,0.54962788]
[1733219428486,0.13025375,3610.5,3610.0,1.3008]
[1733219428645,0.15792573,3610.5,3610.0,1.3008]
[1733219428845,0.13025375,3610.2,3609.7,0.54330586]
[1733219429078,0.13025375,3610.2,3609.1,1.1988]
[1733219429476,0.23025375,3610.0,3609.1,1.1988]
[1733219430019,0.23025375,3610.0,3609.3,0.56582113]
[1733219431080,0.13025375,3609.8,3609.3,0.56582113]
[1733219431503,0.13025375,3609.8,3609.1,1.1988]
[1733219432018,0.13025375,3609.5,3609.1,1.1988]
[1733219432234,0.1,3609.3,3608.6,1.269]
[1733219432382,0.25792573,3609.3,3608.6,1.41359638]
[1733219432578,0.13025375,3609.1,3608.6,1.41359638]
[1733219432785,0.13025375,3609.1,3608.7,0.54667113]
[1733219433625,0.1,3609.3,3608.7,0.54667113]
[1733219433778,0.09387332,3609.3,3608.7,0.54667113]
[1733219433979,0.09387332,3609.3,3608.8,0.19602675]
[1733219434331,0.13025375,3609.4,3608.8,0.19602675]
[1733219434625,0.09387332,3609.3,3608.8,0.19602675]
[1733219436978,0.13025375,3609.0,3608.7,0.54667113]
[1733219437144,0.13025375,3608.6,3608.3,1.2289]
[1733219437477,0.13025375,3608.6,3607.5,1.2289]
[1733219437679,0.13025375,3608.6,3608.2,0.54800217]
[1733219438694,0.13025375,3608.6,3608.3,0.17769022]
[1733219440105,0.13025375,3608.4,3607.7,1.2024]
[1733219440261,0.13025375,3608.1,3607.7,1.2024]
[1733219440462,0.13025375,3608.1,3607.8,0.5497992]
[1733219442562,0.13025375,3608.1,3607.7,1.2024]
[1733219444287,0.13025375,3608.1,3607.8,0.56843646]
[1733219444498,0.13025375,3608.1,3607.9,0.17708365]
[1733219444710,0.22412707,3608.3,3607.9,0.17708365]
[1733219445196,0.13025375,3608.3,3607.9,0.17708365]
[1733219445958,0.09387332,3608.5,3607.9,0.17708365]
[1733219446159,0.22412707,3608.7,3607.9,0.17708365]
[1733219446412,0.13025375,3608.7,3608.0,0.19479201]
[1733219446912,0.22412707,3608.9,3608.1,1.2955]
[1733219448318,0.13025375,3609.1,3608.6,0.56014934]
[1733219448824,0.09387332,3608.9,3608.6,0.56014934]
[1733219448978,0.13025375,3608.9,3608.6,0.56014934]
[1733219450181,0.13025375,3608.7,3608.6,0.56014934]
[1733219450392,0.13025375,3608.7,3608.1,1.35185164]
[1733219450592,0.13025375,3608.2,3608.1,0.05635164]
[1733219451467,0.09387332,3608.5,3608.1,0.05635164]
[1733219451696,0.13025375,3608.7,3608.1,0.62269965]
[1733219452005,0.22412707,3609.2,3608.2,1.3062]
[1733219452167,0.22412707,3609.2,3608.3,0.02770927]
[1733219452510,0.22412707,3609.2,3608.4,1.3062]
[1733219453015,0.13025375,3609.2,3608.4,1.3062]
[1733219453302,0.09387332,3609.1,3608.4,1.3062]
[1733219453508,0.09387332,3609.1,3608.7,0.56834474]
[1733219453719,0.22412707,3609.1,3608.7,0.56834474]
[1733219454872,0.13025375,3608.8,3608.7,0.56834474]
[1733219457091,0.13025375,3608.8,3608.4,1.3062]
[1733219457823,0.09387332,3608.9,3608.1,0.05635164]
[1733219457824,0.13025375,3608.6,3608.1,0.05635164]
[1733219458121,1.31377332,3608.5,3608.1,0.05635164]
[1733219458318,0.13025375,3608.3,3608.1,0.05635164]
[1733219460511,0.09387332,3608.5,3608.1,0.05635164]
[1733219460826,0.13025375,3608.8,3608.2,1.2765]
[1733219461539,0.25888617,3608.7,3608.2,1.44006188]
[1733219461694,0.13025375,3608.8,3608.2,1.44006188]
[1733219461894,0.25887181,3608.7,3608.2,1.44006188]
[1733219462107,0.25886244,3608.6,3608.2,1.44006188]
[1733219462307,0.13025375,3608.8,3608.2,1.44006188]
[1733219462509,0.13025375,3609.0,3608.3,0.14964135]
[1733219462706,0.13025375,3609.4,3608.3,0.17735306]
[1733219462997,0.25889584,3609.3,3608.1,0.05635164]
[1733219463234,0.25889584,3609.2,3608.1,0.05635164]
[1733219463448,0.25889584,3609.1,3608.1,0.05635164]
[1733219463743,0.50693633,3609.5,3608.2,3.00898043]
[1733219463898,0.38917787,3609.4,3608.3,0.33701053]
[1733219464100,0.13025375,3609.4,3608.4,0.02770667]
[1733219464620,0.13025375,3609.6,3608.5,1.3032]
[1733219464885,0.09387332,3609.7,3608.3,0.30930389]
[1733219464886,0.35282456,3609.5,3609.0,0.5538685]
[1733219465124,0.13025375,3609.6,3609.0,0.5538685]
[1733219465309,0.13025375,3609.4,3609.0,0.5538685]
[1733219465708,0.13025375,3609.6,3609.0,0.5538685]
[1733219465912,0.25902286,3609.5,3609.0,0.5538685]
[1733219466146,0.22412707,3609.7,3609.0,0.5538685]
[1733219466449,0.25903871,3609.6,3609.0,0.5538685]
[1733219466597,0.09387332,3609.9,3609.1,1.30720432]
[1733219466938,0.63855557,3610.3,3609.1,1.2795]
[1733219467103,0.25903504,3610.2,3609.1,1.2795]
[1733219467300,0.50830182,3610.7,3609.3,1.2795]
[1733219467521,0.35279538,3610.6,3609.8,0.56773463]
[1733219467853,0.13025375,3610.3,3609.9,1.2795]
[1733219468400,0.35263961,3610.6,3609.9,1.2795]
[1733219468832,0.13025375,3610.5,3609.9,1.2795]
[1733219469250,1.68707551,3610.8,3609.9,1.2795]
[1733219469554,1.42831705,3610.8,3609.9,1.46422346]
[1733219469877,0.25875846,3611.0,3609.9,1.46422346]
[1733219469878,0.25875846,3610.9,3610.0,0.02769598]
[1733219470051,0.09387332,3611.0,3610.1,1.3057]
[1733219470251,0.09387332,3611.3,3610.1,1.33339345]
[1733219470453,0.09387332,3611.3,3610.1,1.3057]
[1733219470615,0.09387332,3611.2,3610.3,1.2808]
[1733219471263,0.13025375,3611.4,3610.3,1.2808]
[1733219471552,0.13025375,3611.4,3610.8,0.56149064]
[1733219471743,0.09387332,3611.2,3610.8,0.56149064]
[1733219472671,0.09387332,3611.2,3610.3,1.2808]
[1733219472850,1.262,3611.6,3610.0,1.2059]
[1733219472851,0.22412707,3610.9,3610.0,1.2059]
[1733219473154,0.13025375,3610.7,3610.0,1.2059]
[1733219473364,0.13025375,3610.7,3610.4,0.54302931]
[1733219474044,0.22412707,3610.9,3610.4,0.54302931]
[1733219474251,0.22412707,3611.3,3610.5,1.2864]
[1733219474450,0.22412707,3611.5,3610.5,1.2864]
[1733219474656,0.37103978,3611.5,3610.5,1.2864]
[1733219474834,0.09387332,3611.3,3610.5,1.2864]
[1733219475040,0.39871176,3611.5,3610.5,1.2864]
[1733219475335,0.02767198,3611.4,3610.5,1.2864]
[1733219475671,0.13025375,3611.0,3610.5,1.2864]
[1733219475825,0.13025375,3611.0,3610.4,0.54302931]
[1733219476543,0.09387332,3610.9,3610.4,0.54302931]
[1733219478633,0.13025375,3611.0,3610.4,0.54302931]
[1733219478857,0.13025375,3611.2,3610.4,0.72167224]
[1733219479172,0.09387332,3611.5,3610.4,0.72167224]
[1733219479173,0.13025375,3611.4,3610.6,1.2999]
[1733219479850,1.245,3611.6,3610.6,1.2999]
[1733219479851,0.13025375,3611.6,3610.6,1.2999]
[1733219480382,0.09387332,3611.1,3610.6,1.2999]
[1733219480679,0.09387332,3611.1,3609.9,0.55]
[1733219480878,0.13025375,3611.0,3610.4,0.56537827]
[1733219481578,0.13025375,3611.0,3610.4,1.78667827]
[1733219481941,0.22412707,3610.8,3610.4,0.56537827]
[1733219483472,0.22412707,3610.8,3610.0,1.2344]
[1733219483659,0.22412707,3610.5,3610.0,1.2344]
[1733219483973,0.09387332,3610.3,3609.7,1.2071]
[1733219484481,0.09387332,3610.3,3609.8,0.55185985]
[1733219485563,0.13025375,3610.2,3609.7,1.2071]
[1733219485737,0.13025375,3610.2,3609.1,1.2974]
[1733219486074,0.13025375,3610.2,3609.2,0.14831069]
[1733219486469,0.13025375,3610.2,3609.5,0.56438826]
[1733219486838,0.15792573,3610.2,3609.5,0.56438826]
[1733219487175,0.09387332,3609.9,3609.5,0.56438826]
[1733219487673,0.09387332,3610.1,3609.6,1.2502]
[1733219487978,0.22412707,3610.4,3609.6,1.2502]
[1733219488137,0.09387332,3610.0,3609.6,1.2502]
[1733219488646,0.09387332,3610.0,3609.5,0.56438826]
[1733219488857,0.13025375,3609.9,3609.5,0.56438826]
[1733219489552,0.15792573,3609.9,3609.5,0.56438826]
[1733219490438,0.22412707,3609.7,3608.9,1.2289]
[1733219490640,1.38415375,3609.3,3608.5,1.2289]
[1733219490868,1.38415375,3609.3,3608.7,0.5599807]
[1733219490869,0.22412707,3609.1,3608.7,0.5599807]
[1733219491066,0.22412707,3609.1,3608.5,1.2289]
[1733219491283,0.13025375,3608.9,3607.7,1.2228]
[1733219491593,1.2539,3609.3,3607.8,0.42317804]
[1733219491594,0.09387332,3608.5,3607.8,0.42317804]
[1733219491754,0.09387332,3608.5,3607.9,0.56053519]
[1733219493299,0.09387332,3608.9,3607.9,0.56053519]
[1733219493483,0.09387332,3609.1,3608.1,1.1897]
[1733219493872,0.03752168,3609.1,3608.1,1.1897]
[1733219494073,0.03752168,3609.1,3608.2,0.17502352]
[1733219494968,0.06519366,3609.1,3608.2,0.17502352]
[1733219495173,0.06519366,3609.1,3608.6,0.54622932]
[1733219496591,0.03752168,3609.1,3608.6,0.54622932]
[1733219496797,0.13025375,3609.0,3608.6,0.54622932]
[1733219497006,0.15792573,3609.0,3608.6,0.54622932]
[1733219497497,0.13025375,3609.0,3608.6,0.54622932]
[1733219497698,0.03752168,3609.1,3608.6,0.54622932]
[1733219499115,0.13025375,3609.0,3608.6,0.54622932]
[1733219500574,0.16777543,3608.7,3608.6,0.54622932]
[1733219500810,0.19544741,3608.7,3608.6,0.54622932]
[1733219501011,0.16777543,3608.7,3608.6,0.54622932]
[1733219501516,0.13025375,3608.4,3607.6,1.2785]
[1733219503989,0.13025375,3608.4,3607.7,0.02771465]
[1733219504377,0.03752168,3608.5,3607.7,0.02771465]
[1733219504609,0.03752168,3608.5,3608.3,0.54657536]
[1733219504778,1.2549,3609.2,3608.4,0.02771095]
[1733219504981,1.2549,3609.2,3608.5,0.17674863]
[1733219505182,0.03752168,3609.1,3608.5,0.17674863]
[1733219507434,0.13025375,3609.0,3608.5,0.17674863]
[1733219507725,0.06519366,3609.1,3606.6,1.1952]
[1733219507726,0.13025375,3607.7,3606.6,1.1952]
[1733219507956,0.13025375,3607.5,3606.6,1.1952]
[1733219508232,0.03752168,3607.3,3606.6,1.1952]
[1733219508737,0.16777543,3607.3,3606.6,1.1952]
[1733219510330,0.16777543,3607.3,3606.6,1.7514196]
[1733219511007,0.16777543,3607.3,3606.7,0.17514196]
[1733219515803,1.31585375,3607.9,3606.7,0.17514196]
[1733219516136,0.03752168,3607.7,3606.7,0.17514196]
[1733219516946,1.35337543,3607.9,3606.7,0.17514196]
[1733219517142,0.03752168,3607.6,3606.7,0.17514196]
[1733219517338,1.35337543,3607.9,3606.8,0.19265616]
[1733219518549,0.03752168,3607.5,3607.2,0.54680801]
[1733219518835,1.24565375,3607.4,3605.8,1.1913]
[1733219519040,1.24565375,3607.4,3605.9,0.4357574]
[1733219519214,1.24565375,3607.4,3605.8,1.1913]
[1733219519638,1.30705375,3606.9,3605.8,1.1913]
[1733219519864,1.30705375,3606.9,3606.5,0.55213515]
[1733219520147,1.34457543,3606.9,3606.5,0.55213515]
[1733219520438,0.03752168,3606.7,3605.8,1.1913]
[1733219520601,0.03752168,3606.7,3606.3,0.56673825]
[1733219520802,1.1768,3606.9,3606.3,0.56673825]
[1733219521004,1.1678,3607.2,3606.3,0.55063825]
[1733219521719,1.1678,3607.2,3606.4,1.2146]
[1733219521904,1.1678,3607.2,3606.4,1.39112383]
[1733219522551,1.1678,3607.2,3606.5,0.55]
[1733219522846,0.03752168,3607.2,3606.5,0.55]
[1733219523351,1.1378,3607.0,3606.1,1.15]
[1733219523550,1.1378,3607.0,3606.8,0.55935711]
[1733219523865,0.03752168,3607.2,3606.8,0.55935711]
[1733219524150,1.25052168,3607.3,3606.8,0.55935711]
[1733219525005,0.03752168,3607.2,3606.8,0.55935711]
[1733219525714,0.13025375,3607.1,3606.8,0.55935711]
[1733219526249,0.03752168,3607.2,3606.8,0.55935711]
[1733219526865,1.2223,3607.6,3606.9,0.57772071]
[1733219527062,0.03752168,3607.6,3607.0,0.23307778]
[1733219527291,0.03752168,3607.6,3606.8,1.75305711]
[1733219527769,1.2236,3607.5,3606.8,0.55935711]
[1733219531973,0.13025375,3607.3,3606.8,0.55935711]
[1733219532317,0.16777543,3607.3,3606.8,0.55935711]
[1733219533700,0.03752168,3607.1,3606.8,0.55935711]
[1733219535374,1.26112168,3607.5,3606.8,0.55935711]
[1733219535818,1.33597543,3607.8,3606.9,1.159121]
[1733219536023,1.20572168,3608.1,3607.0,0.55]
[1733219536318,0.25814589,3608.0,3607.3,0.55]
[1733219536549,0.03752168,3607.8,3607.3,0.55]
[1733219536898,0.03752168,3607.8,3607.7,0.54259823]
[1733219537103,0.03752168,3608.1,3607.7,0.54259823]
[1733219537541,0.03752168,3607.9,3607.7,0.54259823]
[1733219537918,0.25860819,3608.1,3607.7,0.54259823]
[1733219538246,0.13025375,3608.2,3607.7,0.54259823]
[1733219538619,0.25864363,3608.1,3607.7,0.54259823]
[1733219538942,0.03752168,3608.2,3607.7,0.54259823]
[1733219539145,0.03752168,3608.2,3607.8,1.1926]
[1733219539299,0.41261592,3608.6,3607.8,1.1926]
[1733219539300,0.25860262,3608.5,3607.9,0.20400652]
[1733219539505,0.13025375,3608.9,3608.1,1.1926]
[1733219539701,0.13025375,3609.2,3608.2,0.57771069]
[1733219540009,0.13025375,3609.2,3608.2,0.55]
[1733219540203,0.13025375,3609.2,3608.1,1.1926]
[1733219540204,0.03752168,3608.9,3608.1,1.1926]
[1733219540435,0.13025375,3608.8,3607.4,1.1926]
[1733219540633,0.03752168,3608.3,3608.1,0.55280871]
[1733219540850,0.16777543,3608.3,3607.4,1.1926]
[1733219541210,0.19544741,3608.3,3607.4,1.1926]
[1733219541412,0.16777543,3608.3,3607.4,1.1926]
[1733219541623,0.19544741,3608.3,3607.4,1.1926]
[1733219542035,0.19544741,3608.3,3608.0,0.5640404]
[1733219542247,0.16777543,3608.3,3608.0,0.5640404]
[1733219542819,0.19544741,3608.3,3608.0,0.5640404]
[1733219543019,0.16777543,3608.3,3608.0,0.5640404]
[1733219545637,0.19544741,3608.3,3608.0,0.5640404]
[1733219545950,0.16777543,3608.3,3608.0,0.5640404]
[1733219551147,0.16777543,3608.3,3607.4,1.1926]
[1733219551770,0.19544741,3608.3,3607.4,1.1926]
[1733219552370,1.1993,3607.8,3607.1,1.1927]
[1733219552583,0.16777543,3607.7,3606.8,1.1223]
[1733219552881,0.13025375,3607.5,3606.8,1.1223]
[1733219553076,0.13025375,3607.2,3606.4,1.1223]
[1733219554189,0.16777543,3607.5,3606.8,0.55288494]
[1733219554479,3.00898043,3608.6,3606.8,0.55288494]
[1733219554480,0.03752168,3607.7,3607.2,0.55]
[1733219555481,0.03752168,3607.7,3607.3,1.1304]
[1733219555651,0.03752168,3608.1,3607.4,0.20404765]
[1733219555856,0.03752168,3608.1,3607.4,0.17633017]
[1733219556567,1.1485,3607.9,3607.7,0.54661968]
[1733219557134,1.18602168,3607.9,3607.7,0.54661968]
[1733219557779,1.18602168,3607.9,3607.1,0.05518426]
[1733219557780,0.13025375,3607.8,3607.1,0.05518426]
[1733219557951,0.15792573,3607.8,3607.5,0.5626543]
[1733219558152,0.13025375,3607.8,3607.5,0.5626543]
[1733219561179,0.13025375,3607.8,3607.1,0.05518426]
[1733219561180,0.03752168,3607.4,3607.1,0.05518426]
[1733219561388,1.26877543,3607.2,3607.1,0.05518426]
[1733219561538,1.29644741,3607.2,3607.1,0.05518426]
[1733219562710,0.03752168,3606.0,3605.4,1.1269]
[1733219562878,1.1681,3606.4,3605.4,1.1269]
[1733219563049,0.13025375,3606.7,3605.8,0.54787299]
[1733219563451,0.03752168,3606.4,3605.8,0.54787299]
[1733219563849,0.13025375,3606.7,3605.8,0.54787299]
[1733219564053,0.13025375,3606.7,3605.9,0.55]
[1733219564248,0.03752168,3606.3,3605.8,0.54787299]
[1733219568088,0.03752168,3606.3,3605.9,0.02772982]
[1733219568295,0.03752168,3606.3,3605.9,0.55]
[1733219568796,0.03752168,3606.3,3605.8,0.54787299]
[1733219569363,0.03752168,3606.3,3605.9,0.00258382]
[1733219569887,1.1133,3606.2,3605.9,0.00258382]
[1733219570226,1.1133,3606.2,3605.8,0.54787299]
[1733219572050,0.03752168,3606.0,3605.8,0.54787299]
[1733219572247,0.13025375,3605.9,3605.8,0.54787299]
[1733219574517,0.16777543,3605.9,3605.8,0.54787299]
[1733219574723,0.03752168,3605.9,3605.8,0.54787299]
[1733219574877,1.15082168,3606.2,3605.8,0.54787299]
[1733219575079,0.03752168,3605.9,3605.8,0.54787299]
[1733219576921,0.16777543,3605.9,3605.8,0.54787299]
[1733219577102,0.03752168,3605.9,3605.8,0.54787299]
[1733219578477,0.03752168,3606.2,3605.8,1.66417299]
[1733219578674,0.03752168,3606.2,3605.9,0.18214666]
[1733219580276,0.03752168,3606.2,3605.8,1.66417299]
[1733219580479,0.16777543,3606.2,3605.8,0.54787299]
[1733219581106,0.03752168,3606.2,3605.8,0.54787299]
[1733219581313,0.16777543,3606.2,3605.8,0.54787299]
[1733219582500,0.03752168,3606.0,3605.8,0.54787299]
[1733219583039,0.16777543,3606.4,3605.8,0.54787299]
[1733219583240,0.03752168,3606.2,3605.8,0.54787299]
[1733219583535,0.16777543,3606.2,3605.8,0.54787299]
[1733219584050,0.03752168,3606.4,3605.8,0.54787299]
[1733219584343,0.13025375,3606.5,3605.8,0.54787299]
[1733219584344,0.03752168,3606.2,3605.8,0.54787299]
[1733219584543,0.16777543,3606.5,3605.8,0.54787299]
[1733219585041,0.03752168,3606.5,3605.8,0.54787299]
[1733219585205,0.16777543,3606.5,3605.8,0.54787299]
[1733219587657,0.16777543,3606.5,3605.9,1.1559]
[1733219590158,0.03752168,3606.3,3605.8,0.54787299]
[1733219591025,0.03752168,3606.3,3605.8,0.72965965]
[1733219591641,0.03752168,3606.3,3605.9,0.02772928]
[1733219591844,0.16777543,3606.5,3606.0,1.0884]
[1733219592369,0.03752168,3606.5,3606.0,1.0884]
[1733219592571,0.03752168,3606.3,3606.0,1.11612836]
[1733219592852,0.03752168,3606.5,3606.0,1.11612836]
[1733219593851,0.03752168,3606.6,3606.0,1.30070716]
[1733219594559,1.24665375,3606.8,3606.0,1.30070716]
[1733219594560,0.03752168,3606.5,3606.0,1.30070716]
[1733219594749,0.16777543,3606.5,3606.0,1.2729788]
[1733219595121,0.03752168,3606.5,3606.0,1.30070717]
[1733219595655,0.16777543,3606.5,3606.0,1.30070717]
[1733219595959,0.16777543,3606.5,3606.0,1.2729788]
[1733219596946,0.03752168,3606.5,3606.0,1.2729788]
[1733219597471,0.03752168,3606.5,3606.4,0.54788894]
[1733219597826,0.16777543,3606.5,3606.4,0.54788894]
[1733219598031,0.16777543,3606.5,3605.6,1.2842936]
[1733219598344,0.16777543,3606.5,3606.3,0.56181926]
[1733219598540,0.16777543,3606.5,3605.6,1.2842936]
[1733219598944,1.0773,3606.1,3605.6,1.2842936]
[1733219599154,0.13025375,3606.2,3605.6,1.2842936]
[1733219599689,1.20755375,3606.4,3605.6,1.2842936]
[1733219600331,0.13025375,3606.2,3606.0,0.56281824]
[1733219600777,1.20755375,3606.4,3606.0,0.56281824]
[1733219604272,0.13025375,3606.2,3606.0,0.56281824]
[1733219605584,0.03752168,3606.1,3606.0,0.56281824]
[1733219606083,0.29603432,3606.1,3606.0,0.56281824]
[1733219606586,0.03752168,3605.9,3605.6,0.1572936]
[1733219608258,1.1383,3605.8,3605.6,0.1572936]
[1733219610545,0.03752168,3605.7,3605.6,0.1572936]
[1733219613975,0.03493786,3605.7,3605.6,0.1572936]
[1733219615806,0.03493786,3605.9,3605.6,0.36633054]
[1733219616192,0.03493786,3606.2,3605.6,0.33859742]
[1733219616500,0.03493786,3606.2,3605.6,0.36632892]
[1733219616702,1.1467,3606.3,3605.6,0.36632889]
[1733219617023,0.03493786,3606.2,3605.6,0.36632889]
[1733219617212,0.03493786,3606.2,3605.7,0.20220735]
[1733219618220,0.13025375,3606.4,3605.7,0.20220735]
[1733219618403,0.13025375,3606.4,3605.8,1.1191]
[1733219620017,0.2583493,3606.9,3605.9,0.02772828]
[1733219620217,0.2583493,3606.9,3606.0,1.1605]
[1733219620418,0.2583493,3606.9,3606.3,0.55816457]
[1733219620604,0.03493786,3607.0,3606.4,1.18822512]
[1733219620815,0.03493786,3607.0,3606.4,1.1605]
[1733219621780,0.03493786,3607.0,3606.4,1.18822277]
[1733219622127,0.03493786,3607.0,3606.4,1.1605]
[1733219622276,0.16519161,3607.4,3606.5,0.17186646]
[1733219622483,0.42356554,3607.4,3606.5,0.17186646]
[1733219622780,0.16519161,3607.4,3606.5,0.17186646]
[1733219622993,0.13025375,3607.2,3606.5,0.17186646]
[1733219623436,0.03493786,3607.0,3606.5,0.17186646]
[1733219623724,0.25837393,3607.7,3607.0,1.1014]
[1733219623877,0.2583061,3608.0,3607.2,1.1014]
[1733219624083,0.03493786,3608.1,3607.4,1.1014]
[1733219624412,1.26805375,3608.5,3607.5,1.72867561]
[1733219624587,0.13025375,3608.5,3607.6,1.1014]
[1733219624784,0.03493786,3608.0,3607.7,1.46168317]
[1733219624984,0.03493786,3608.0,3607.7,0.28300756]
[1733219625316,0.03493786,3608.0,3607.6,1.1014]
[1733219625886,0.03493786,3608.0,3607.9,0.54473714]
[1733219626128,0.16519161,3608.4,3607.9,0.54473714]
[1733219626323,0.13025375,3608.4,3607.9,0.54473714]
[1733219626832,0.13025375,3608.4,3608.0,0.02771303]
[1733219627121,0.13025375,3608.4,3607.9,0.4637901]
[1733219627330,0.03493786,3608.2,3607.9,0.4637901]
[1733219628319,0.16519161,3608.2,3607.9,0.4637901]
[1733219631835,0.13025375,3608.0,3607.9,0.4637901]
[1733219632335,0.16519161,3608.2,3607.9,0.4637901]
[1733219633937,0.13025375,3608.0,3607.9,0.4637901]
[1733219634146,0.16519161,3608.2,3607.9,0.4637901]
[1733219634640,0.13025375,3608.0,3607.9,0.4637901]
[1733219634960,0.03493786,3608.2,3607.9,0.4637901]
[1733219636243,1.24349161,3608.0,3606.6,1.6498]
[1733219636410,0.03493786,3607.6,3607.3,0.55511789]
[1733219636605,0.03493786,3607.4,3607.3,0.55511789]
[1733219637028,1.11323786,3607.4,3606.6,1.0998]
[1733219637234,0.03493786,3607.0,3606.3,1.0998]
[1733219637438,0.13025375,3607.2,3606.8,0.54359224]
[1733219638154,0.13025375,3607.4,3606.8,0.54359224]
[1733219638645,0.13025375,3607.4,3606.9,1.1151]
[1733219639240,0.03493786,3607.3,3606.9,1.1151]
[1733219639461,0.13025375,3607.4,3606.9,1.1151]
[1733219640136,0.03493786,3607.3,3606.9,1.1151]
[1733219640532,0.03493786,3607.3,3606.8,0.54359224]
[1733219641108,0.13025375,3607.0,3606.8,0.54359224]
[1733219642051,0.16519161,3607.0,3606.8,0.54359224]
[1733219642418,0.16519161,3607.0,3606.2,1.142]
[1733219642754,0.03493786,3606.6,3605.8,1.142]
[1733219643508,0.13025375,3606.5,3605.8,1.142]
[1733219643819,1.0843,3606.4,3605.8,1.142]
[1733219644014,0.13025375,3606.5,3606.3,0.5620484]
[1733219644564,0.03493786,3606.6,3606.3,0.5620484]
[1733219645120,1.0843,3607.0,3606.3,0.5620484]
[1733219645315,0.13025375,3607.3,3606.5,0.55]
[1733219645554,0.03493786,3607.2,3606.7,0.55]
[1733219645717,0.13025375,3607.3,3606.7,0.55]
[1733219648331,0.13025375,3607.3,3606.4,0.41457255]
[1733219649726,0.13025375,3607.3,3606.5,0.01391953]
[1733219649928,0.13025375,3607.3,3607.1,0.5439421]
[1733219652339,0.03493786,3607.0,3606.4,0.41457255]
[1733219652539,0.13025375,3606.9,3605.7,1.0589]
[1733219653345,0.13025375,3606.9,3605.8,0.15743107]
[1733219654275,0.13025375,3606.9,3605.9,0.55]
[1733219654424,0.16519161,3606.9,3606.8,0.55559562]
[1733219655481,0.13025375,3607.1,3606.8,0.55559562]
[1733219655639,0.03493786,3607.0,3606.8,0.55559562]
[1733219656934,0.16519161,3607.1,3606.8,0.55559562]
[1733219657739,0.03493786,3607.0,3606.8,0.55559562]
[1733219658673,1.0688,3607.2,3606.8,0.55559562]
[1733219658976,0.10980887,3607.1,3606.8,0.55559562]